fUSD/lending_fUSD_20260412
["ID","MTS","AMOUNT","RATE_DAILY","PERIOD"]
[420329735,1775971900035,-300.0,0.00043836,120]
[420329736,1775971900045,-300.0,0.00043836,120]
[420329737,1775971900057,-300.0,0.00043836,120]
[420329738,1775971900073,-300.0,0.00043836,120]
[420329739,1775971900083,-300.0,0.00043836,120]
[420329740,1775971900092,-300.0,0.00043836,120]
[420329741,1775971900106,-300.0,0.00043836,120]
[420329742,1775971900124,-300.0,0.00043836,120]
[420329743,1775971900133,-300.0,0.00043836,120]
[420329744,1775971900150,-300.0,0.00043836,120]
[420329745,1775971900168,-300.0,0.00043836,120]
[420329746,1775971900178,-300.0,0.00043836,120]
[420329747,1775971900194,-300.0,0.00043836,120]
[420329748,1775971900210,-300.0,0.00043836,120]
[420329749,1775971900226,-300.0,0.00043836,120]
[420329750,1775971900239,-300.0,0.00043836,120]
[420329751,1775971900251,-300.0,0.00043836,120]
[420329752,1775971900273,-300.0,0.00043836,120]
[420329753,1775971900282,-300.0,0.00043836,120]
[420329754,1775971900298,-300.0,0.00043836,120]
[420329755,1775971900313,-300.0,0.00043836,120]
[420329756,1775971900325,-300.0,0.00043836,120]
[420329757,1775971900342,-300.0,0.00043836,120]
[420329758,1775971900354,-300.0,0.00043836,120]
[420329759,1775971900369,-300.0,0.00043836,120]
[420329760,1775971900386,-300.0,0.00043836,120]
[420329761,1775971900397,-300.0,0.00043836,120]
[420329762,1775971900415,-300.0,0.00043836,120]
[420329763,1775971900433,-300.0,0.00043836,120]
[420329764,1775971900449,-300.0,0.00043836,120]
[420329765,1775971900467,-300.0,0.00043836,120]
[420329766,1775971900484,-300.0,0.00043836,120]
[420329767,1775971900499,-300.0,0.00043836,120]
[420329768,1775971900511,-300.0,0.00043836,120]
[420329769,1775971900532,-300.0,0.00043836,120]
[420329770,1775971900543,-300.0,0.00043836,120]
[420329771,1775971900552,-300.0,0.00043836,120]
[420329772,1775971900577,-666.0,0.00043836,120]
[420329773,1775971900587,-666.0,0.00043836,120]
[420329774,1775971900598,-666.0,0.00043836,120]
[420329775,1775971900625,-666.0,0.00043836,120]
[420329776,1775971900635,-666.0,0.00043836,120]
[420329777,1775971900665,-666.0,0.00043836,120]
[420329778,1775971900674,-666.0,0.00043836,120]
[420329779,1775971900697,-666.0,0.00043836,120]
[420329780,1775971900709,-666.0,0.00043836,120]
[420329781,1775971900718,-666.0,0.00043836,120]
[420329782,1775971900739,-666.0,0.00043836,120]
[420329783,1775971900752,-666.0,0.00043836,120]
[420329784,1775971900762,-666.0,0.00043836,120]
[420329785,1775971900783,-666.0,0.00043836,120]
[420329786,1775971900798,-666.0,0.00043836,120]
[420329787,1775971900808,-666.0,0.00043836,120]
[420329788,1775971900829,-666.0,0.00043836,120]
[420329789,1775971900841,-666.0,0.00043836,120]
[420329790,1775971900850,-666.0,0.00043836,120]
[420329791,1775971900870,-666.0,0.00043836,120]
[420329792,1775971900888,-666.0,0.00043836,120]
[420329793,1775971900900,-666.0,0.00043836,120]
[420329794,1775971900914,-666.0,0.00043836,120]
[420329795,1775971900930,-666.0,0.00043836,120]
[420329796,1775971900945,-666.0,0.00043836,120]
[420329797,1775971900959,-666.0,0.00043836,120]
[420329798,1775971900976,-666.0,0.00043836,120]
[420329799,1775971900989,-666.0,0.00043836,120]
[420329800,1775971901007,-666.0,0.00043836,120]
[420329801,1775971901024,-666.0,0.00043836,120]
[420329802,1775971901042,-666.0,0.00043836,120]
[420329803,1775971901063,-666.0,0.00043836,120]
[420329804,1775971901073,-300.0,0.00043836,120]
[420329805,1775971901085,-300.0,0.00043836,120]
[420329806,1775971901095,-5000.0,0.00043836,120]
[420329807,1775971901121,-5000.0,0.00043836,120]
[420329808,1775971901131,-5000.0,0.00043836,120]
[420329809,1775971901145,-5000.0,0.00043836,120]
[420329810,1775971901165,-5000.0,0.00043836,120]
[420329811,1775971901175,-5000.0,0.00043836,120]
[420329812,1775971901184,-5000.0,0.00043836,120]
[420329813,1775971901195,-5000.0,0.00043836,120]
[420329814,1775971901214,-5000.0,0.00043836,120]
[420329815,1775971901224,-5000.0,0.00043836,120]
[420329816,1775971901233,-5000.0,0.00043836,120]
[420329817,1775971901253,-6655.0,0.00043836,120]
[420329818,1775971901264,-2000.0,0.00043836,100]
[420329819,1775971901273,-2000.0,0.00043836,100]
[420329820,1775971901285,-500.0,0.00043836,100]
[420329821,1775971901295,-500.0,0.00043836,100]
[420329822,1775971901305,-500.0,0.00043836,100]
[420329823,1775971901315,-500.0,0.00043836,100]
[420329824,1775971901327,-500.0,0.00043836,100]
[420329825,1775971901336,-190.881258,0.00043836,120]
[420329826,1775971901346,-190.881258,0.00043836,120]
[420329827,1775971901359,-150.0,0.00043836,2]
[420329828,1775971901371,-154.61480434,0.00043836,120]
[420329829,1775971901381,-154.61480434,0.00043836,120]
[420329830,1775971901391,-2614.18708321,0.00043836,31]
[420329831,1775971901403,-2614.18708321,0.00043836,31]
[420329832,1775971901414,-2614.18708321,0.00043836,31]
[420329833,1775971901425,-2614.18708321,0.00043836,31]
[420329834,1775971901438,-2614.18708321,0.00043836,31]
[420329835,1775971901448,-2614.18708321,0.00043836,31]
[420329836,1775971901459,-2614.18708321,0.00043836,31]
[420329837,1775971901470,-2614.18708321,0.00043836,31]
[420329838,1775971901483,-2614.18708321,0.00043836,31]
[420329839,1775971901493,-2614.18708321,0.00043836,31]
[420329840,1775971901506,-2614.18708321,0.00043836,31]
[420329841,1775971901523,-2614.18708321,0.00043836,31]
[420329842,1775971901533,-2614.18708321,0.00043836,31]
[420329843,1775971901546,-2614.18708321,0.00043836,31]
[420329844,1775971901558,-2614.18708321,0.00043836,31]
[420329845,1775971901574,-2614.18708321,0.00043836,31]
[420329846,1775971901608,-2614.18708321,0.00043836,31]
[420329847,1775971901619,-2614.18708321,0.00043836,31]
[420329848,1775971901637,-2614.18708321,0.00043836,31]
[420329849,1775971901648,-2614.18708321,0.00043836,31]
[420329850,1775971901659,-2614.18708321,0.00043836,31]
[420329851,1775971901668,-2614.18708321,0.00043836,31]
[420329852,1775971901682,-2614.18708321,0.00043836,31]
[420329853,1775971901697,-2614.18708321,0.00043836,31]
[420329854,1775971901707,-2614.18708321,0.00043836,31]
[420329855,1775971901716,-2614.18708321,0.00043836,31]
[420329856,1775971901731,-2614.18708321,0.00043836,31]
[420329857,1775971901741,-2614.18708321,0.00043836,31]
[420329858,1775971901751,-2614.18708321,0.00043836,31]
[420329859,1775971901760,-2614.18708321,0.00043836,31]
[420329860,1775971901777,-2614.18708321,0.00043836,31]
[420329861,1775971901787,-2614.18708321,0.00043836,31]
[420329862,1775971901797,-2614.18708321,0.00043836,31]
[420329863,1775971901807,-2614.18708321,0.00043836,31]
[420329864,1775971901819,-2614.18708321,0.00043836,31]
[420329865,1775971901829,-2614.18708321,0.00043836,31]
[420329866,1775971901839,-2614.18708321,0.00043836,31]
[420329867,1775971901848,-2614.18708321,0.00043836,31]
[420329868,1775971901858,-2614.18708321,0.00043836,31]
[420329869,1775971901870,-2614.18708321,0.00043836,31]
[420329870,1775971901883,-2614.18708321,0.00043836,31]
[420329871,1775971901893,-2614.18708321,0.00043836,31]
[420329872,1775971901903,-2614.18708321,0.00043836,31]
[420329873,1775971901914,-2614.18708321,0.00043836,31]
[420329874,1775971901923,-2614.18708321,0.00043836,31]
[420329875,1775971901936,-2614.18708321,0.00043836,31]
[420329876,1775971901947,-2614.18708321,0.00043836,31]
[420329877,1775971901959,-2614.18708321,0.00043836,31]
[420329878,1775971901975,-2614.18708321,0.00043836,31]
[420329879,1775971901986,-2614.18708321,0.00043836,31]
[420329880,1775971902005,-2614.18708321,0.00043836,31]
[420329881,1775971902020,-2614.18708321,0.00043836,31]
[420329882,1775971902039,-2614.18708321,0.00043836,31]
[420329883,1775971902050,-2614.18708321,0.00043836,31]
[420329884,1775971902077,-811.0,0.00043836,120]
[420329885,1775971902091,-811.0,0.00043836,120]
[420329886,1775971902116,-811.0,0.00043836,120]
[420329887,1775971902138,-811.0,0.00043836,120]
[420329888,1775971902150,-811.0,0.00043836,120]
[420329889,1775971902188,-811.0,0.00043836,120]
[420329890,1775971902205,-811.0,0.00043836,120]
[420329891,1775971902230,-811.0,0.00043836,120]
[420329892,1775971902241,-811.0,0.00043836,120]
[420329893,1775971902263,-811.0,0.00043836,120]
[420329894,1775971902284,-811.0,0.00043836,120]
[420329895,1775971902300,-811.0,0.00043836,120]
[420329896,1775971902327,-811.0,0.00043836,120]
[420329897,1775971902344,-811.0,0.00043836,120]
[420329898,1775971902374,-811.0,0.00043836,120]
[420329899,1775971902400,-811.0,0.00043836,120]
[420329900,1775971902414,-811.0,0.00043836,120]
[420329901,1775971902427,-811.0,0.00043836,120]
[420329902,1775971902444,-811.0,0.00043836,120]
[420329903,1775971902458,-811.0,0.00043836,120]
[420329904,1775971902473,-811.0,0.00043836,120]
[420329905,1775971902496,-811.0,0.00043836,120]
[420329906,1775971902511,-811.0,0.00043836,120]
[420329907,1775971902525,-818.24337404,0.00043836,120]
[420329908,1775971902550,-1000.0,0.00043844,120]
[420329909,1775971902564,-150.0,0.00043849,120]
[420329910,1775971902588,-825.0,0.00043852,60]
[420329911,1775971902598,-492.83375056,0.00043866,60]
[420329912,1775971902618,-371.1,0.00043866,120]
[420329913,1775971902634,-1000.0,0.00043868,14]
[420329914,1775971902644,-500.0,0.00043877,45]
[420329915,1775971902669,-754.86600531,0.00043888,120]
[420329916,1775971902682,-50000.0,0.000439,30]
[420329917,1775971902691,-5000.0,0.000439,120]
[420329918,1775971902703,-431.92812101,0.000439,120]
[420329919,1775971902723,-88624.0046177,0.000439,120]
[420329920,1775971902734,-581.0916237,0.000439,120]
[420329921,1775971902744,-8070.03646067,0.000439,120]
[420329922,1775971902757,-60336.5459808,0.000439,14]
[420329923,1775971902769,-207.43797413,0.000439,90]
[420329924,1775971902778,-2158.6348,0.000439,90]
[420329925,1775971902796,-42979.052482,0.000439,120]
[420329926,1775971902807,-96037.9102758,0.000439,120]
[420329927,1775971902821,-151.0,0.000439,120]
[420329928,1775971902834,-200.0,0.000439,16]
[420329929,1775971902854,-150.0,0.00043911,120]
[420329930,1775971902865,-492.83375056,0.00043921,60]
[420329931,1775971902877,-203.85838449,0.00043922,120]
[420329932,1775971902906,-1000.0,0.00043935,120]
[420329933,1775971902923,-1000.0,0.00043935,120]
[420329934,1775971902963,-500.0,0.00043945,2]
[420329935,1775971902982,-500.0,0.00043945,2]
[420329936,1775971903048,-634.19704341,0.00043945,120]
[420329937,1775971903109,-10009.27572203,0.00043947,2]
[420329938,1775971903175,-371.1,0.00043966,120]
[420329939,1775971903226,-987428.6893,0.00043968,30]
[420329940,1775971903271,-1000.0,0.00043973,120]
[420329941,1775971903296,-697.926,0.00043973,120]
[420329942,1775971903318,-157.08828878,0.00043975,2]
[420329943,1775971903338,-492.83375056,0.00043977,60]
[420329944,1775971903362,-7608.7015806,0.00043987,120]
[420329945,1775971903382,-800.0,0.00043987,120]
[420329946,1775971903408,-500.0,0.00043987,120]
[420329947,1775971903424,-1000.0,0.00043994,120]
[420329948,1775971903445,-1000.0,0.00043994,120]
[420329949,1775971903474,-1000.0,0.00043994,120]
[420329950,1775971903506,-1000.0,0.00043994,120]
[420329951,1775971903518,-200.0,0.00044,3]
[420329952,1775971903541,-1330.0,0.00044,120]
[420329953,1775971903551,-384596.19306602,0.00044,120]
[420329954,1775971903562,-1500.0,0.00044,120]
[420329955,1775971903583,-2000.0,0.00044,120]
[420329956,1775971903593,-255.0,0.00044,120]
[420329957,1775971903602,-10801.2451348,0.00044,7]
[420329958,1775971903626,-389.80536008,0.00044,7]
[420329959,1775971903638,-1973.83110705,0.00044,2]
[420329960,1775971903652,-100000.0,0.00044,10]
[420329961,1775971903667,-4162.84979595,0.00044,60]
[420329962,1775971903678,-150.0,0.00044,120]
[420329963,1775971903694,-10205.95999522,0.00044,60]
[420329964,1775971903703,-500.0,0.00044,120]
[420329965,1775971903715,-1650.0,0.00044,120]
[420329966,1775971903729,-71058.51060944,0.00044,2]
[420329967,1775971903739,-163.84108782,0.00044,120]
[420329968,1775971903748,-1000.0,0.00044,120]
[420329969,1775971903762,-9300.0,0.00044,120]
[420329970,1775971903778,-197000.0,0.00044,120]
[420329971,1775971903787,-1000.0,0.00044,120]
[420329972,1775971903797,-2742.70790464,0.00044,7]
[420329973,1775971903817,-150.0,0.00044,30]
[420329974,1775971903826,-1947.11563419,0.00044,120]
[420329975,1775971903836,-12167.43346462,0.00044,120]
[420329976,1775971903847,-2000.0,0.00044,120]
[420329977,1775971903859,-210.0,0.00044,120]
[420329978,1775971903869,-10000.0,0.00044,120]
[420329979,1775971903879,-204.4678,0.00044,120]
[420329980,1775971903894,-100000.0,0.00044,11]
[420329981,1775971903905,-6664.53011255,0.00044,120]
[420329982,1775971903914,-16419.05,0.00044,120]
[420329983,1775971903931,-500.0,0.00044,45]
[420329984,1775971903940,-3391.82931,0.00044,120]
[420329985,1775971903949,-19959.24,0.00044,120]
[420329986,1775971903959,-3452.0,0.00044,30]
[420329987,1775971903975,-3622.44084585,0.00044,120]
[420329988,1775971903984,-42607.68496115,0.00044,30]
[420329989,1775971904002,-2000.0,0.00044,120]
[420329990,1775971904016,-370.0,0.00044,30]
[420329991,1775971904026,-27259.298986,0.00044,120]
[420329992,1775971904037,-209.70050647,0.00044,120]
[420329993,1775971904058,-3015.28,0.00044,30]
[420329994,1775971904068,-500.0,0.00044,120]
[420329995,1775971904077,-500.0,0.0004401,120]
[420329996,1775971904088,-500.0,0.0004402,120]
[420329997,1775971904098,-492.83375056,0.00044033,60]
[420329998,1775971904106,-1757.32159937,0.00044038,120]
[420329999,1775971904116,-2167.24107137,0.00044038,120]
[420330000,1775971904126,-600.52436822,0.00044054,2]
[420330001,1775971904137,-500.0,0.00044054,2]
[420330002,1775971904148,-371.1,0.00044066,120]
[420330003,1775971904161,-500.0,0.0004407,120]
[420330004,1775971904171,-150.0,0.00044088,120]
[420330005,1775971904182,-492.83375056,0.00044089,60]
[420330006,1775971904198,-150.0,0.00044098,120]
[420330007,1775971904208,-372.33188195,0.000441,120]
[420330008,1775971904219,-1000.53,0.000441,120]
[420330009,1775971904234,-1626.02,0.00044109,120]
[420330010,1775971904246,-1442.42,0.00044109,120]
[420330011,1775971904259,-2122.61,0.00044109,120]
[420330012,1775971904277,-847.7,0.00044109,120]
[420330013,1775971904290,-1688.37,0.00044109,120]
[420330014,1775971904302,-651.55,0.00044109,120]
[420330015,1775971904321,-813.07,0.00044109,120]
[420330016,1775971904334,-711.78,0.00044109,120]
[420330017,1775971904346,-552.86,0.00044109,120]
[420330018,1775971904364,-560.42,0.00044109,120]
[420330019,1775971904377,-1100.29,0.00044109,120]
[420330020,1775971904391,-500.0,0.00044109,120]
[420330021,1775971904408,-1444.55,0.00044109,120]
[420330022,1775971904419,-624.84,0.00044109,120]
[420330023,1775971904431,-1463.92,0.00044109,120]
[420330024,1775971904444,-1146.76,0.00044109,120]
[420330025,1775971904453,-675.5,0.00044109,120]
[420330026,1775971904465,-887.48,0.00044109,120]
[420330027,1775971904479,-271.0475069,0.00044109,120]
[420330028,1775971904489,-1086.28,0.00044109,120]
[420330029,1775971904499,-2038.18,0.00044109,120]
[420330030,1775971904511,-516.79,0.00044109,120]
[420330031,1775971904525,-928.97,0.00044109,120]
[420330032,1775971904537,-502.42,0.00044109,120]
[420330033,1775971904552,-592.59,0.00044109,120]
[420330034,1775971904564,-1810.69,0.00044109,120]
[420330035,1775971904579,-527.58,0.00044109,120]
[420330036,1775971904596,-2182.35,0.00044109,60]
[420330037,1775971904630,-150.0,0.00044124,120]
[420330038,1775971904659,-1000.0,0.00044128,120]
[420330039,1775971904705,-825.0,0.00044135,90]
[420330040,1775971904779,-150.0,0.00044136,120]
[420330041,1775971904858,-1000.0,0.00044137,14]
[420330042,1775971904914,-492.83375056,0.00044145,60]
[420330043,1775971904937,-17899.22308285,0.00044146,90]
[420330044,1775971904950,-1208.36063729,0.00044146,90]
[420330045,1775971904967,-1000.0,0.00044156,14]
[420330046,1775971904980,-872.12,0.0004416,95]
[420330047,1775971904993,-500.0,0.00044164,2]
[420330048,1775971905004,-371.1,0.00044166,120]
[420330049,1775971905018,-150.0,0.00044169,120]
[420330050,1775971905031,-1000.0,0.00044197,120]
[420330051,1775971905041,-200000.0,0.000442,75]
[420330052,1775971905059,-200000.0,0.000442,80]
[420330053,1775971905070,-13562.25543257,0.000442,7]
[420330054,1775971905083,-1200.0,0.000442,30]
[420330055,1775971905096,-4980.0,0.000442,120]
[420330056,1775971905110,-492.83375056,0.00044201,60]
[420330057,1775971905124,-960.26842398,0.00044204,14]
[420330058,1775971905134,-500.0,0.0004424,45]
[420330059,1775971905150,-231.84,0.00044248,120]
[420330060,1775971905162,-157.08828878,0.00044248,2]
[420330061,1775971905179,-96704.98953373,0.00044256,6]
[420330062,1775971905190,-492.83375056,0.00044257,60]
[420330063,1775971905204,-371.1,0.00044266,120]
[420330064,1775971905215,-500.0,0.00044273,2]
[420330065,1775971905226,-1000.0,0.00044274,14]
[420330066,1775971905236,-2111.4,0.0004428,120]
[420330067,1775971905247,-509.0,0.00044282,20]
[420330068,1775971905256,-1000.0,0.00044298,14]
[420330069,1775971905271,-2500.0,0.000443,120]
[420330070,1775971905280,-151.0,0.000443,120]
[420330071,1775971905291,-5767.6,0.000443,31]
[420330072,1775971905301,-492.83375056,0.00044313,60]
[420330073,1775971905317,-150.0,0.00044322,120]
[420330074,1775971905326,-150.0,0.00044324,120]
[420330075,1775971905335,-371.1,0.00044366,120]
[420330076,1775971905344,-492.83375056,0.00044369,60]
[420330077,1775971905360,-500.0,0.00044373,120]
[420330078,1775971905369,-500.0,0.00044377,45]
[420330079,1775971905379,-500.0,0.00044383,2]
[420330080,1775971905389,-1626.02,0.00044383,120]
[420330081,1775971905405,-1442.42,0.00044383,120]
[420330082,1775971905415,-2122.61,0.00044383,120]
[420330083,1775971905424,-847.7,0.00044383,120]
[420330084,1775971905433,-1688.37,0.00044383,120]
[420330085,1775971905449,-651.55,0.00044383,120]
[420330086,1775971905459,-813.07,0.00044383,120]
[420330087,1775971905469,-711.78,0.00044383,120]
[420330088,1775971905483,-552.86,0.00044383,120]
[420330089,1775971905494,-560.42,0.00044383,120]
[420330090,1775971905503,-1100.29,0.00044383,120]
[420330091,1775971905515,-332.00352062,0.00044383,120]
[420330092,1775971905527,-1444.55,0.00044383,120]
[420330093,1775971905541,-624.84,0.00044383,120]
[420330094,1775971905550,-1463.92,0.00044383,120]
[420330095,1775971905563,-1146.76,0.00044383,120]
[420330096,1775971905579,-675.5,0.00044383,120]
[420330097,1775971905588,-887.48,0.00044383,120]
[420330098,1775971905598,-1086.28,0.00044383,120]
[420330099,1775971905611,-2038.18,0.00044383,120]
[420330100,1775971905626,-516.79,0.00044383,120]
[420330101,1775971905637,-928.97,0.00044383,120]
[420330102,1775971905646,-502.42,0.00044383,120]
[420330103,1775971905667,-592.59,0.00044383,120]
[420330104,1775971905683,-1810.69,0.00044383,120]
[420330105,1775971905693,-527.58,0.00044383,120]
[420330106,1775971905721,-2182.35,0.00044383,60]
[420330107,1775971905731,-2000.0,0.000444,120]
[420330108,1775971905754,-323.65288442,0.000444,120]
[420330109,1775971905769,-3000.0,0.000444,90]
[420330110,1775971905779,-494.0,0.000444,120]
[420330111,1775971905804,-200.33529411,0.000444,45]
[420330112,1775971905816,-184940.02571452,0.000444,120]
[420330113,1775971905968,-152.0,0.000444,120]
[420330114,1775971905982,-235.86043271,0.000444,120]
[420330115,1775971905993,-958.47253548,0.000444,120]
[420330116,1775971906004,-224.85775604,0.000444,120]
[420330117,1775971906015,-486.17825119,0.000444,120]
[420330118,1775971906025,-214.9419965,0.000444,120]
[420330119,1775971906034,-1384.81985575,0.000444,120]
[420330120,1775971906045,-1132.86890187,0.000444,120]
[420330121,1775971906055,-497.40007772,0.000444,120]
[420330122,1775971906064,-413.76120468,0.000444,120]
[420330123,1775971906074,-1442.21675386,0.000444,120]
[420330124,1775971906083,-2410.91104952,0.000444,120]
[420330125,1775971906092,-1506.58826754,0.000444,120]
[420330126,1775971906101,-1372.10317768,0.000444,120]
[420330127,1775971906111,-1776.5850185,0.000444,120]
[420330128,1775971906121,-16385.7729,0.00044403,30]
[420330129,1775971906131,-825.0,0.00044418,90]
[420330130,1775971906141,-492.83375056,0.00044425,60]
[420330131,1775971906150,-168.0,0.00044432,120]
[420330132,1775971906161,-9170.17859668,0.0004444,120]
[420330133,1775971906170,-1000.0,0.00044452,120]
[420330134,1775971906182,-1000.0,0.00044453,120]
[420330135,1775971906192,-333.99,0.00044461,2]
[420330136,1775971906202,-371.1,0.00044466,120]
[420330137,1775971906215,-4560.59879179,0.00044475,120]
[420330138,1775971906225,-492.83375056,0.00044481,60]
[420330139,1775971906238,-1757.32159937,0.00044492,120]
[420330140,1775971906252,-2167.24107137,0.00044492,120]
[420330141,1775971906264,-500.0,0.00044493,2]
[420330142,1775971906274,-1814.0,0.000445,120]
[420330143,1775971906284,-200000.0,0.000445,85]
[420330144,1775971906311,-200000.0,0.000445,90]
[420330145,1775971906321,-983.69,0.000445,120]
[420330146,1775971906340,-35000.0,0.000445,30]
[420330147,1775971906354,-5112.27735402,0.000445,7]
[420330148,1775971906365,-1416.0,0.000445,7]
[420330149,1775971906383,-299.91579907,0.000445,120]
[420330150,1775971906396,-16747.43,0.000445,120]
[420330151,1775971906406,-500.0,0.000445,45]
[420330152,1775971906424,-3000.0,0.000445,120]
[420330153,1775971906438,-20358.43,0.000445,120]
[420330154,1775971906448,-719.60406535,0.000445,120]
[420330155,1775971906459,-3647.13411899,0.000445,30]
[420330156,1775971906470,-500.0,0.000445,120]
[420330157,1775971906483,-157.08828878,0.00044522,2]
[420330158,1775971906493,-6524.96009756,0.00044523,16]
[420330159,1775971906504,-224.302908,0.00044523,7]
[420330160,1775971906515,-1496.045386,0.00044523,7]
[420330161,1775971906526,-2963.467938,0.00044523,7]
[420330162,1775971906535,-244.8,0.00044523,120]
[420330163,1775971906548,-2001.0,0.00044524,30]
[420330164,1775971906558,-150.0,0.00044535,120]
[420330165,1775971906568,-800.0,0.00044535,120]
[420330166,1775971906578,-492.83375056,0.00044537,60]
[420330167,1775971906590,-1000.0,0.0004455,120]
[420330168,1775971906603,-150.0,0.00044566,120]
[420330169,1775971906613,-371.1,0.00044566,120]
[420330170,1775971906623,-500.0,0.00044569,120]
[420330171,1775971906642,-200.0,0.00044569,120]
[420330172,1775971906652,-492.83375056,0.00044592,60]
[420330173,1775971906661,-1000.0,0.00044596,14]
[420330174,1775971906676,-2000.0,0.000446,120]
[420330175,1775971906686,-800.0,0.000446,30]
[420330176,1775971906696,-13798.82949219,0.000446,120]
[420330177,1775971906706,-500.0,0.00044602,2]
[420330178,1775971906722,-150.0,0.00044631,120]
[420330179,1775971906740,-492.83375056,0.00044648,60]
[420330180,1775971906749,-1626.16116973,0.00044657,120]
[420330181,1775971906759,-1442.51695603,0.00044657,120]
[420330182,1775971906771,-2122.70789548,0.00044657,120]
[420330183,1775971906785,-847.71632986,0.00044657,120]
[420330184,1775971906797,-1688.52624399,0.00044657,120]
[420330185,1775971906806,-651.6794537,0.00044657,120]
[420330186,1775971906823,-813.17502305,0.00044657,120]
[420330187,1775971906835,-711.82735504,0.00044657,120]
[420330188,1775971906853,-552.8678332,0.00044657,120]
[420330189,1775971906864,-560.46740985,0.00044657,120]
[420330190,1775971906889,-1100.31157322,0.00044657,120]
[420330191,1775971906906,-1444.59029408,0.00044657,120]
[420330192,1775971907061,-624.93359688,0.00044657,120]
[420330193,1775971907168,-1464.03711833,0.00044657,120]
[420330194,1775971907192,-1146.96,0.00044657,120]
[420330195,1775971907201,-675.63156335,0.00044657,120]
[420330196,1775971907211,-887.69368948,0.00044657,120]
[420330197,1775971907228,-1086.401961,0.00044657,120]
[420330198,1775971907245,-2038.21617513,0.00044657,120]
[420330199,1775971907255,-516.98750435,0.00044657,120]
[420330200,1775971907273,-929.04947246,0.00044657,120]
[420330201,1775971907283,-502.44,0.00044657,120]
[420330202,1775971907294,-592.77,0.00044657,120]
[420330203,1775971907308,-1810.88637845,0.00044657,120]
[420330204,1775971907321,-527.58,0.00044657,120]
[420330205,1775971907355,-2182.51430466,0.00044657,60]
[420330206,1775971907488,-151.0,0.00044657,120]
[420330207,1775971907516,-151.0,0.00044657,30]
[420330208,1775971907538,-151.0,0.00044657,120]
[420330209,1775971907582,-151.0,0.00044657,30]
[420330210,1775971907611,-264.991758,0.00044657,120]
[420330211,1775971907805,-151.0,0.00044657,30]
[420330212,1775971907977,-151.0,0.00044657,120]
[420330213,1775971908182,-151.0,0.00044657,120]
[420330214,1775971908265,-151.0,0.00044657,60]
[420330215,1775971908455,-151.0,0.00044657,120]
[420330216,1775971908559,-151.0,0.00044657,120]
[420330217,1775971908615,-151.0,0.00044657,120]
[420330218,1775971908679,-151.0,0.00044657,120]
[420330219,1775971908697,-158.048755,0.00044657,120]
[420330220,1775971908737,-158.177884,0.00044657,120]
[420330221,1775971908755,-294.988599,0.00044657,120]
[420330222,1775971908803,-158.177884,0.00044657,120]
[420330223,1775971908816,-294.988599,0.00044657,120]
[420330224,1775971908845,-158.177884,0.00044657,120]
[420330225,1775971908856,-294.988599,0.00044657,120]
[420330226,1775971908922,-158.177884,0.00044657,120]
[420330227,1775971908958,-294.988599,0.00044657,120]
[420330228,1775971908987,-222.656361,0.00044657,120]
[420330229,1775971909016,-222.656361,0.00044657,120]
[420330230,1775971909035,-222.656361,0.00044657,120]
[420330231,1775971909065,-222.656361,0.00044657,120]
[420330232,1775971909076,-2001.0,0.00044658,30]
[420330233,1775971909107,-2000.0,0.00044658,30]
[420330234,1775971909118,-371.1,0.00044666,120]